bitfinex/quotes_ETHUSD_20220106
["timestamp","ask_amount","ask_price","bid_price","bid_amount"]
[1641429624799,0.70699,3538.0,3537.5,0.03559365]
[1641429625096,0.70699,3538.0,3537.6,0.00682108]
[1641429625097,0.7069927,3537.9,3537.6,0.00682108]
[1641429625496,0.3,3537.8,3537.6,0.00682108]
[1641429625900,16.6,3537.7,3537.6,0.00682108]
[1641429626101,17.9,3537.7,3537.6,0.00682108]
[1641429626298,1.3,3537.7,3537.6,0.00682108]
[1641429626499,0.3,3537.7,3537.6,0.00682108]
[1641429626901,0.3,3537.8,3536.6,0.69499233]
[1641429627302,1.07938429,3537.6,3536.7,0.00511582]
[1641429627500,1.60148454,3537.4,3536.7,0.00511582]
[1641429627900,1.30148454,3537.4,3536.7,0.00511582]
[1641429628429,0.3,3537.4,3536.7,0.00511582]
[1641429628633,0.3,3537.5,3536.7,0.00511582]
[1641429628836,0.633,3537.6,3536.6,0.65010815]
[1641429629037,17.233,3537.6,3536.6,0.65010815]
[1641429629238,1.40384649,3537.1,3536.6,0.65010815]
[1641429629640,16.60170528,3537.0,3536.6,0.65010815]
[1641429630040,1.30113685,3536.9,3536.6,0.65010815]
[1641429630441,1.27213301,3537.0,3536.6,0.65010815]
[1641429630442,0.00170528,3537.0,3536.6,0.65010815]
[1641429630842,0.30113685,3536.9,3536.6,0.65010815]
[1641429631041,0.00113685,3536.9,3536.6,0.65010815]
[1641429631342,0.633,3537.1,3536.6,0.65010815]
[1641429631343,0.00170528,3537.0,3536.6,0.65010815]
[1641429631742,0.00113685,3536.9,3536.8,1.51761414]
[1641429632185,0.00170528,3536.9,3536.8,1.51761414]
[1641429632385,0.00170528,3536.9,3536.8,1.81761414]
[1641429632587,0.00170528,3536.9,3536.8,6.01761414]
[1641429632786,0.00170528,3536.9,3536.8,8.51761414]
[1641429632987,0.26172591,3537.9,3537.1,0.03500498]
[1641429633187,3.7957,3539.9,3537.7,0.01229921]
[1641429633386,3.7957,3539.9,3537.7,0.35729921]
[1641429633588,5.7957,3539.9,3537.7,0.35729921]
[1641429633788,5.7957,3539.9,3538.2,1.5]
[1641429633988,1.32848598,3539.3,3538.3,1.09657568]
[1641429634387,0.01250531,3539.2,3538.3,1.09657568]
[1641429634788,0.01193689,3539.1,3538.3,1.09657568]
[1641429635192,0.01136846,3539.0,3538.3,1.09657568]
[1641429635634,0.01080004,3538.9,3538.3,1.09657568]
[1641429636037,0.01023162,3538.8,3538.3,1.09657568]
[1641429636239,0.01023162,3538.8,3538.2,1.5]
[1641429636440,0.00966319,3538.7,3537.0,8.9047]
[1641429636637,0.00966319,3538.7,3536.8,0.00113685]
[1641429636839,0.00909477,3538.6,3536.8,0.00113685]
[1641429637240,1.14368619,3538.2,3537.6,1.29235152]
[1641429637642,1.14368619,3538.2,3536.8,0.00113685]
[1641429637643,0.00625265,3538.1,3536.8,0.00113685]
[1641429637840,16.6,3538.0,3536.8,0.00113685]
[1641429638039,16.90568423,3538.0,3536.8,0.00113685]
[1641429638241,16.61214837,3537.8,3536.8,0.00113685]
[1641429638439,0.345,3537.7,3536.8,0.00113685]
[1641429638640,1.47881549,3537.5,3536.8,0.00113685]
[1641429638840,0.707098,3537.4,3536.8,0.00113685]
[1641429639040,0.00227369,3537.4,3536.8,0.00113685]
[1641429639244,0.00170527,3537.3,3536.8,0.00113685]
[1641429639688,0.00113684,3537.2,3536.8,0.00113685]
[1641429640395,0.33413684,3537.2,3536.8,0.00113685]
[1641429642293,0.66713684,3537.2,3536.9,1.1952187]
[1641429642493,0.66713684,3537.2,3536.8,0.00113685]
[1641429643152,0.66713684,3537.2,3537.1,0.03834948]
[1641429644339,1.00013684,3537.2,3537.1,2.83834948]
[1641429646344,1.33313684,3537.2,3537.1,2.83834948]
[1641429648197,17.93313684,3537.2,3537.1,2.83834948]
[1641429648394,18.26613684,3537.2,3537.1,2.83834948]
[1641429648593,19.26613684,3537.2,3537.1,2.83834948]
[1641429649393,2.66613684,3537.2,3537.1,2.83834948]
[1641429650395,3.80818738,3537.2,3537.1,2.83834948]
[1641429650641,4.14118738,3537.2,3537.1,2.83834948]
[1641429651946,2.99913684,3537.2,3537.1,2.83834948]
[1641429652146,1.99913684,3537.2,3537.1,2.83834948]
[1641429652345,2.99913684,3537.2,3537.1,2.83834948]
[1641429652546,1.99913684,3537.2,3537.1,2.83834948]
[1641429652747,2.33213684,3537.2,3537.1,2.83834948]
[1641429654888,2.66513684,3537.2,3537.1,2.83834948]
[1641429655087,6.8,3537.1,3536.8,0.00113685]
[1641429655284,16.945,3537.0,3536.8,0.00113685]
[1641429655484,16.945,3537.0,3536.7,0.00170528]
[1641429655684,16.6,3536.8,3536.7,0.00170528]
[1641429655884,17.75472704,3536.8,3536.7,0.00170528]
[1641429656087,20.1841185,3536.8,3536.7,0.00170528]
[1641429656584,20.4841185,3536.8,3536.7,0.00170528]
[1641429656785,2.42939146,3536.8,3536.7,0.00170528]
[1641429656993,2.46239146,3536.8,3536.7,0.00170528]
[1641429657191,1.46239146,3536.8,3536.7,0.00170528]
[1641429659041,1.79539146,3536.8,3536.7,0.00170528]
[1641429659648,0.666,3536.8,3536.7,0.00170528]
[1641429661054,0.999,3536.8,3536.7,0.00170528]
[1641429663093,1.332,3536.8,3536.7,0.00170528]
[1641429663491,1.332,3536.8,3536.7,0.01388394]
[1641429664291,1.332,3536.8,3536.7,3.26523122]
[1641429664491,1.332,3536.8,3536.7,0.31523122]
[1641429664695,1.332,3536.8,3536.7,2.81523122]
[1641429664898,1.332,3536.8,3536.7,2.80305256]
[1641429665091,1.665,3536.8,3536.7,2.80305256]
[1641429665491,1.665,3536.8,3536.7,0.00305256]
[1641429665740,2.66513684,3537.2,3536.7,0.00305256]
[1641429667247,2.99813684,3537.2,3536.7,0.00305256]
[1641429668450,1.0,3537.1,3536.7,0.00305256]
[1641429668649,1.7070268,3537.1,3536.7,0.00305256]
[1641429668849,0.3,3537.0,3536.7,0.00305256]
[1641429669250,0.633,3537.0,3536.7,0.00305256]
[1641429669487,0.333,3537.0,3536.7,0.00305256]
[1641429669694,1.44930064,3536.8,3536.7,0.00305256]
[1641429669892,1.74930064,3536.8,3536.7,0.00305256]
[1641429670094,2.74930064,3536.8,3536.7,0.00305256]
[1641429670993,1.3,3536.8,3536.7,0.00305256]
[1641429671394,1.633,3536.8,3536.7,0.00305256]
[1641429671596,1.333,3536.8,3536.7,0.00305256]
[1641429671796,0.333,3536.8,3536.7,0.00305256]
[1641429673534,0.666,3536.8,3536.7,0.00305256]
[1641429673934,1.666,3536.8,3536.7,0.00305256]
[1641429674335,3.06406262,3536.8,3536.7,0.00305256]
[1641429675536,1.999,3536.8,3536.7,0.00305256]
[1641429675938,1.999,3536.8,3536.7,2.80305256]
[1641429676141,0.999,3536.8,3536.7,2.80305256]
[1641429676746,1.299,3536.8,3536.7,2.80305256]
[1641429677594,1.632,3536.8,3536.7,2.80305256]
[1641429677996,2.632,3536.8,3536.7,2.80305256]
[1641429678394,2.632,3536.8,3536.7,2.70305256]
[1641429678995,19.532,3536.8,3536.7,2.70305256]
[1641429679596,19.865,3536.8,3536.7,2.70305256]
[1641429681238,19.6390062,3536.8,3536.7,2.70305256]
[1641429681536,19.565,3536.8,3536.7,2.70305256]
[1641429681736,19.898,3536.8,3536.7,2.70305256]
[1641429683142,20.198,3536.8,3536.7,2.70305256]
[1641429683941,20.531,3536.8,3536.7,2.70305256]
[1641429685398,20.531,3536.8,3536.7,2.70425678]
[1641429685797,20.231,3536.8,3536.7,2.70425678]
[1641429685996,20.564,3536.8,3536.7,2.70425678]
[1641429688232,20.897,3536.8,3536.7,2.70425678]
[1641429689936,21.197,3536.8,3536.7,2.70425678]
[1641429690332,21.53,3536.8,3536.7,2.70425678]
[1641429692495,21.863,3536.8,3536.7,2.70425678]
[1641429693296,6.8,3536.7,3536.6,0.65010815]
[1641429693495,23.7,3536.7,3536.6,0.65010815]
[1641429693696,19.35466476,3536.7,3536.6,0.65010815]
[1641429693897,6.8,3536.6,3535.0,0.01285359]
[1641429694097,6.8,3536.6,3534.9,3.8803]
[1641429694098,1.41464,3536.4,3534.9,3.8803]
[1641429694298,0.345,3536.4,3535.1,0.00909477]
[1641429694497,0.3,3535.7,3535.1,0.00909477]
[1641429694698,0.70743,3535.5,3535.1,0.00909477]
[1641429695002,1.00743,3535.5,3535.1,0.00909477]
[1641429695197,1.12011777,3535.4,3535.1,0.00909477]
[1641429695396,0.7074269,3535.1,3534.6,0.01193689]
[1641429695639,3.40591228,3535.3,3534.6,0.01193689]
[1641429695842,2.69844228,3535.3,3535.2,0.0012704]
[1641429696239,19.59844228,3535.3,3535.2,0.00979675]
[1641429696438,20.30591228,3535.3,3535.2,0.00979675]
[1641429696648,20.63891228,3535.3,3535.2,0.00979675]
[1641429698647,20.97191228,3535.3,3535.2,0.00979675]
[1641429700100,22.66130947,3535.3,3535.2,0.00979675]
[1641429700698,22.99430947,3535.3,3535.2,0.00979675]
[1641429701104,22.99430947,3535.3,3533.0,0.42455]
[1641429701105,4.49119997,3533.2,3532.6,0.84909]
[1641429701304,4.49119997,3533.2,3532.2,3.6429]
[1641429701501,4.49119997,3533.2,3532.1,5.4642]
[1641429701502,1.0,3533.1,3532.4,0.6525776]
[1641429701703,1.0,3533.1,3532.5,0.01534743]
[1641429702302,0.7078902,3532.9,3532.5,0.01534743]
[1641429702501,0.3,3532.8,3532.5,0.01534743]
[1641429702702,16.6,3532.7,3532.5,0.01534743]
[1641429703140,17.6,3532.6,3532.5,0.01534743]
[1641429703444,19.14904913,3532.6,3532.5,0.01534743]
[1641429703656,2.54904913,3532.6,3532.5,0.01534743]
[1641429703841,1.0,3532.6,3532.5,0.01534743]
[1641429704042,1.0,3533.1,3532.5,0.01534743]
[1641429704242,0.333,3533.1,3532.5,0.01534743]
[1641429705045,0.7078729,3533.0,3532.5,0.01534743]
[1641429705244,0.7078729,3533.0,3532.9,1.42225724]
[1641429705645,0.7078729,3533.0,3532.9,1.43533098]
[1641429705845,0.7078729,3533.0,3532.9,0.01307374]
[1641429705846,17.6078729,3533.0,3532.9,0.01307374]
[1641429706044,18.6078729,3533.0,3532.9,0.01307374]
[1641429706444,18.9408729,3533.0,3532.9,0.01307374]
[1641429706645,18.9408729,3533.0,3532.9,0.01436871]
[1641429706890,2.3408729,3533.0,3532.9,0.01436871]
[1641429707090,1.3408729,3533.0,3532.9,0.01436871]
[1641429707291,2.3408729,3533.0,3532.9,0.01436871]
[1641429707695,1.3408729,3533.0,3532.9,0.01436871]
[1641429707896,1.0408729,3533.0,3532.9,0.01436871]
[1641429708600,1.3738729,3533.0,3532.9,0.01436871]
[1641429709197,0.666,3533.0,3532.9,0.01436871]
[1641429709397,4.49119997,3533.2,3533.0,5.8]
[1641429709797,3.08009997,3533.2,3533.1,6.76193689]
[1641429709998,0.0048,3534.5,3533.2,6.8]
[1641429710199,0.0048,3534.5,3533.6,0.01299383]
[1641429710663,0.3378,3534.5,3533.7,0.00852635]
[1641429711049,0.3378,3534.5,3533.8,1.4311776]
[1641429711350,0.3378,3534.5,3533.9,0.0073895]
[1641429711751,0.7075536,3534.4,3533.9,0.0073895]
[1641429712154,1.0075536,3534.4,3533.9,0.0073895]
[1641429712756,1.3405536,3534.4,3533.9,0.0073895]
[1641429713957,0.99927212,3534.2,3533.9,0.0073895]
[1641429714159,1.70693172,3534.2,3533.9,0.0073895]
[1641429714795,2.03993172,3534.2,3533.9,0.0073895]
[1641429714993,2.03993172,3534.2,3533.0,0.01250531]
[1641429715193,1.33227212,3534.2,3533.0,0.01250531]
[1641429715593,1.33227212,3534.2,3533.0,2.81250531]
[1641429715796,1.33227212,3534.2,3533.7,1.4925268]
[1641429716194,1.33227212,3534.2,3533.8,0.00795793]
[1641429716393,16.6,3534.1,3533.8,0.00795793]
[1641429716594,1.0,3534.0,3533.8,0.00795793]
[1641429716795,0.7076684,3533.9,3533.8,0.00795793]
[1641429716996,1.0076684,3533.9,3533.8,0.00795793]
[1641429717394,0.7076684,3533.9,3533.8,0.00795793]
[1641429717899,0.333,3534.0,3533.8,0.00795793]
[1641429718943,0.666,3534.0,3533.8,0.00795793]
[1641429720245,0.966,3534.0,3533.8,0.00795793]
[1641429721143,1.299,3534.0,3533.8,0.00795793]
[1641429721545,2.37664998,3534.0,3532.8,1.36262248]
[1641429721745,0.707671,3533.8,3532.7,0.01421058]
[1641429722018,0.707671,3533.8,3532.9,0.01307374]
[1641429722207,2.37664998,3534.0,3532.6,1.15543566]
[1641429722208,0.3,3533.7,3532.7,0.01421058]
[1641429722404,0.3,3533.7,3533.0,0.01250531]
[1641429722607,17.9,3533.9,3532.7,0.01421058]
[1641429722808,1.0,3533.9,3532.7,0.01421058]
[1641429723210,0.7077874,3533.4,3532.7,0.01421058]
[1641429724010,1.333,3533.9,3532.7,0.01421058]
[1641429724312,0.7076608,3533.8,3532.8,1.08165298]
[1641429724511,0.333,3533.9,3532.8,1.08165298]
[1641429724711,0.333,3533.9,3533.4,0.01209947]
[1641429724910,0.333,3534.2,3533.8,0.01205269]
[1641429725111,1.4893,3536.4,3533.8,0.01205269]
[1641429725112,1.15281139,3535.6,3533.9,8.189897]
[1641429725311,0.707336,3535.6,3534.0,6.55]
[1641429725513,0.707336,3535.6,3534.1,0.345]
[1641429725749,0.707336,3535.6,3534.1,0.35125266]
[1641429725948,0.707336,3535.6,3534.2,0.00568423]
[1641429726550,1.07076168,3535.2,3534.2,0.00568423]
[1641429726953,0.707336,3535.6,3534.9,1.21576279]
[1641429727154,0.7072973,3535.8,3534.9,1.21576279]
[1641429727350,3.02139719,3535.3,3535.0,0.00113684]
[1641429727951,3.02139719,3535.3,3535.0,0.00214494]
[1641429728153,4.3545448,3535.3,3535.0,0.00214494]
[1641429729589,4.6875448,3535.3,3535.0,0.00214494]
[1641429730395,1.0,3535.2,3535.0,0.00214494]
[1641429731693,1.333,3535.2,3535.0,0.00214494]
[1641429732496,0.333,3535.2,3535.0,0.00214494]
[1641429732700,1.333,3535.2,3535.0,0.00214494]
[1641429733750,1.666,3535.2,3535.0,0.00214494]
[1641429734951,1.666,3535.2,3535.1,1.37914709]
[1641429735255,0.666,3535.2,3535.1,1.37914709]
[1641429735854,0.999,3535.2,3535.1,1.37914709]
[1641429738098,1.332,3535.2,3535.1,1.37914709]
[1641429740099,1.665,3535.2,3535.1,1.37914709]
[1641429740307,3.35439719,3535.3,3535.1,1.37914709]
[1641429740308,1.08979719,3535.3,3535.2,7.982]
[1641429740502,0.333,3536.4,3535.3,0.17754569]
[1641429740744,0.333,3536.4,3535.4,0.345]
[1641429740946,6.35195278,3536.8,3535.7,6.7]
[1641429741146,6.35195278,3536.8,3536.3,1.15304437]
[1641429741344,0.00227369,3536.7,3536.3,1.15304437]
[1641429741747,0.00170527,3536.6,3536.3,1.15304437]
[1641429742144,0.00113685,3536.5,3536.1,1.84741845]
[1641429744253,0.33413685,3536.5,3536.1,1.84741845]
[1641429745299,0.33413685,3536.5,3536.1,4.64741845]
[1641429746300,0.66713685,3536.5,3536.1,4.64741845]
[1641429747302,0.66713685,3536.5,3536.1,5.70778845]
[1641429747702,0.66713685,3536.5,3536.1,6.00778845]
[1641429748150,0.66713685,3536.5,3536.3,1.25142667]
[1641429748351,1.00013685,3536.5,3536.3,1.25142667]
[1641429748753,1.00013685,3536.5,3536.1,6.00778845]
[1641429748953,1.00013685,3536.5,3536.4,5.00083476]
[1641429749353,1.00013685,3536.5,3536.4,0.00083476]
[1641429749953,0.95013685,3536.5,3536.4,3.55083476]
[1641429750154,0.95013685,3536.5,3536.4,0.00083476]
[1641429750353,1.28313685,3536.5,3536.4,0.00083476]
[1641429752403,1.61613685,3536.5,3536.4,0.00083476]
[1641429752616,2.997,3537.2,3536.4,0.00083476]
[1641429752617,0.3330501,3538.0,3537.2,1.37268442]
[1641429752809,2.68895278,3538.7,3538.2,0.58966088]
[1641429753004,2.68895278,3538.7,3538.5,0.05]
[1641429753603,2.68895278,3538.7,3538.6,1.69353662]
[1641429754006,2.70145809,3538.7,3538.6,1.69353662]
[1641429754405,3.03445809,3538.7,3538.6,1.69353662]
[1641429755005,3.03445809,3538.7,3538.6,0.345]
[1641429755208,0.34550531,3538.7,3538.5,0.05]
[1641429755646,0.01193689,3538.6,3538.5,0.05]
[1641429756544,0.34493689,3538.6,3538.5,0.05]
[1641429758552,0.67793689,3538.6,3538.3,4.5]
[1641429758952,0.01136847,3538.5,3538.3,4.5]
[1641429759251,0.01080004,3538.4,3538.3,4.5]
[1641429760699,0.34380004,3538.4,3538.3,4.5]
[1641429762904,0.67680004,3538.4,3538.3,4.5]
[1641429764053,5.67680004,3538.4,3538.3,4.5]
[1641429764952,6.00980004,3538.4,3538.3,4.5]
[1641429765154,6.75,3538.3,3537.7,0.345]
[1641429765352,6.75,3538.3,3537.2,2.78596442]
[1641429765353,6.75,3538.3,3537.2,1.37268442]
[1641429765653,0.0096632,3538.2,3537.2,1.37268442]
[1641429766051,5.999,3538.4,3537.4,1.39631056]
[1641429766052,1.0482957,3537.6,3537.4,1.39631056]
[1641429766451,0.00568423,3537.5,3537.2,1.37268442]
[1641429766901,1.0482957,3537.6,3537.2,1.37268442]
[1641429766902,0.00511581,3537.4,3537.2,4.17268442]
[1641429767302,0.00454739,3537.3,3537.2,4.17268442]
[1641429767503,0.00454739,3537.3,3537.2,5.59065569]
[1641429769309,0.33031374,3537.3,3537.2,5.59065569]
[1641429771448,0.66331374,3537.3,3537.2,5.59065569]
[1641429772654,0.66331374,3537.3,3537.2,5.93565569]
[1641429773454,0.99631374,3537.3,3537.2,5.93565569]
[1641429774902,0.99631374,3537.3,3537.2,6.23565569]
[1641429775503,1.32931374,3537.3,3537.2,6.23565569]
[1641429776704,1.32931374,3537.3,3537.2,5.93565569]
[1641429777505,1.66231374,3537.3,3537.2,5.93565569]
[1641429779552,1.99531374,3537.3,3537.2,5.93565569]
[1641429779756,1.99160717,3537.3,3537.2,9.48565569]
[1641429779952,1.99160717,3537.3,3537.2,5.93565569]
[1641429780652,1.99160717,3537.3,3537.2,4.51768442]
[1641429781453,1.99160717,3537.3,3537.2,4.17268442]
[1641429781656,3.331797,3537.3,3537.2,4.17268442]
[1641429782505,2.32460717,3537.3,3537.2,4.17268442]
[1641429783707,2.65760717,3537.3,3537.2,4.17268442]
[1641429785857,2.99060717,3537.3,3537.2,4.17268442]
[1641429786652,1.07335946,3537.3,3537.2,10.32268442]
[1641429787052,1.07335946,3537.3,3537.2,4.23823341]
[1641429787656,1.07335946,3537.3,3537.2,4.17268442]
[1641429787863,1.40635946,3537.3,3537.2,4.17268442]
[1641429790001,1.73935946,3537.3,3537.2,4.17268442]
[1641429790202,6.73935946,3537.3,3537.2,4.17268442]
[1641429792104,7.07235946,3537.3,3537.2,4.17268442]
[1641429794269,7.40535946,3537.3,3537.2,4.17268442]
[1641429794870,8.76211672,3537.3,3537.2,4.17268442]
[1641429795276,5.80111142,3537.2,3537.1,4.5]
[1641429795675,4.5,3537.1,3536.8,5.37686315]
[1641429796075,1.0,3537.0,3536.9,0.0022737]
[1641429796274,2.01400281,3537.0,3536.9,0.0022737]
[1641429798308,2.34700281,3537.0,3536.9,0.0022737]
[1641429798508,2.29700281,3537.0,3536.9,0.0022737]
[1641429800511,1.68000281,3537.0,3536.9,0.0022737]
[1641429800753,2.0636,3537.1,3536.9,7.1022737]
[1641429800955,2.0636,3537.1,3537.0,7.445]
[1641429801253,2.0636,3537.1,3537.0,0.34670527]
[1641429801454,2.0636,3537.1,3537.0,1.57379031]
[1641429802655,2.3966,3537.1,3537.0,1.57379031]
[1641429804599,2.7296,3537.1,3537.0,1.57379031]
[1641429806805,3.0626,3537.1,3537.0,1.57379031]
[1641429807002,1.142e-05,3537.2,3537.1,8.71828718]
[1641429807201,1.142e-05,3537.2,3537.1,9.09617125]
[1641429807402,1.142e-05,3537.2,3537.1,9.0973081]
[1641429807606,0.333,3537.5,3537.3,0.4328]
[1641429807806,0.333,3537.5,3537.4,0.345]
[1641429808252,0.33413684,3537.5,3537.4,0.645]
[1641429808452,0.666,3538.6,3537.5,0.4015]
[1641429808652,0.666,3538.6,3537.6,0.345]
[1641429808853,0.00454739,3538.3,3537.8,0.3532]
[1641429809054,1.332,3538.4,3537.8,0.3532]
[1641429809055,1.332,3538.4,3537.9,0.68463854]
[1641429809254,1.332,3538.4,3537.9,0.79251223]
[1641429809455,1.332,3538.4,3538.0,3.47729591]
[1641429809664,1.332,3538.4,3538.1,1.704835]
[1641429809855,1.332,3538.4,3538.1,5.0448587]
[1641429810057,1.332,3538.4,3538.2,2.1190244]
[1641429810259,1.332,3538.4,3538.3,7.595]
[1641429810458,1.332,3538.4,3538.3,8.195]
[1641429810656,1.332,3538.4,3538.3,7.595]
[1641429810858,1.665,3538.4,3538.3,0.345]
[1641429811059,1.665,3538.4,3538.3,0.645]
[1641429812605,1.665,3538.4,3538.3,3.395]
[1641429812806,1.998,3538.4,3538.3,3.395]
[1641429813008,0.20133684,3538.4,3538.3,7.895]
[1641429813207,0.20133684,3538.4,3538.3,7.90703213]
[1641429813410,0.20133684,3538.4,3538.3,3.70703213]
[1641429815011,0.53433684,3538.4,3538.3,3.70703213]
[1641429815412,0.7025776,3539.7,3538.7,0.466]
[1641429815651,0.0001,3538.9,3538.8,7.68319997]
[1641429815856,0.0001,3538.9,3538.8,7.73515686]
[1641429816051,0.7025776,3539.7,3538.9,7.2]
[1641429816252,0.7025776,3539.7,3539.6,8.34827462]
[1641429816452,0.7025776,3539.7,3539.6,2.85624224]
[1641429817056,1.0355776,3539.7,3539.6,2.85624224]
[1641429817456,0.24162298,3540.0,3539.7,5.8]
[1641429817658,0.24162298,3540.0,3539.8,1.0511193]
[1641429817859,0.24162298,3540.0,3539.8,2.08923342]
[1641429818058,0.24162298,3540.0,3539.9,0.3]
[1641429818258,0.24162298,3540.0,3539.9,3.945]
[1641429818458,0.25128618,3540.0,3539.9,0.345]
[1641429819158,0.58428618,3540.0,3539.9,0.345]
[1641429820402,0.58428618,3540.0,3539.9,4.52655583]
[1641429820603,0.58428618,3540.0,3539.9,4.82655583]
[1641429821003,0.333,3540.5,3540.2,0.706]
[1641429821208,0.333,3540.5,3540.3,2.53483297]
[1641429821409,0.00227369,3540.4,3540.3,2.53483297]
[1641429821611,0.00227369,3540.4,3540.3,2.18183297]
[1641429823153,0.33527369,3540.4,3540.3,2.18183297]
[1641429825256,0.66827369,3540.4,3540.3,2.18183297]
[1641429827197,0.66827369,3540.4,3540.3,4.98183297]
[1641429827500,1.00127369,3540.4,3540.3,4.98183297]
[1641429829603,1.33427369,3540.4,3540.3,4.98183297]
[1641429831756,1.66727369,3540.4,3540.3,4.98183297]
[1641429831954,1.66727369,3540.4,3540.3,3.145]
[1641429832153,1.66727369,3540.4,3540.3,2.8]
[1641429833861,2.00027369,3540.4,3540.3,2.8]
[1641429835908,2.33327369,3540.4,3540.3,2.8]
[1641429837917,2.66627369,3540.4,3540.3,2.8]
[1641429839952,2.99927369,3540.4,3540.3,2.8]
[1641429841458,2.99927369,3540.4,3540.3,3.85107879]
[1641429841658,2.99927369,3540.4,3540.3,6.52741477]
[1641429841918,2.99927369,3540.4,3540.3,7.86456875]
[1641429842118,3.33227369,3540.4,3540.3,7.86456875]
[1641429843226,3.9439,3541.1,3540.7,0.35296]
[1641429843525,0.00341054,3541.0,3540.7,0.65296]
[1641429843926,0.00284212,3540.9,3540.7,0.65296]
[1641429844327,0.0022737,3540.8,3540.7,2.03435977]
[1641429844730,0.0022737,3540.8,3540.7,1.73435977]
[1641429845755,0.0022737,3540.8,3540.6,0.3]
[1641429845952,0.0022737,3540.8,3540.7,1.15992537]
[1641429846154,0.333,3540.9,3540.7,1.15992537]
[1641429846354,0.333,3540.8,3540.7,1.85788537]
[1641429847356,0.333,3540.8,3540.7,2.15788537]
[1641429848461,0.666,3540.8,3540.7,2.15788537]
[1641429850505,0.999,3540.8,3540.7,2.15788537]
[1641429852004,0.999,3540.8,3540.7,0.69796]
[1641429852610,1.332,3540.8,3540.7,0.69796]
[1641429852811,1.332,3540.8,3540.7,0.345]
[1641429853008,1.332,3540.8,3540.1,2.00475539]
[1641429853254,1.332,3540.8,3540.2,1.41171547]
[1641429853453,0.00170527,3540.7,3540.2,1.71285231]
[1641429853656,0.00170527,3540.7,3540.3,0.706]
[1641429853657,67.126254,3540.4,3540.3,0.706]
[1641429853853,67.126254,3540.4,3540.3,1.051]
[1641429854254,67.126254,3540.4,3540.3,1.351]
[1641429854651,67.459254,3540.4,3540.3,2.057]
[1641429856658,67.792254,3540.4,3540.3,2.057]
[1641429856897,67.792254,3540.4,3540.3,1.757]
[1641429857305,67.792254,3540.4,3540.3,4.557]
[1641429858102,1.19153851,3540.4,3540.3,18.6868632]
[1641429858303,0.333,3541.1,3540.3,18.6868632]
[1641429858304,0.50509103,3541.2,3540.7,0.2038009]
[1641429858604,0.50509103,3541.2,3541.1,10.16660844]
[1641429858605,0.12012781,3541.2,3541.1,10.16660844]
[1641429858807,3.7675,3542.8,3541.3,0.2038009]
[1641429859102,3.7675,3542.8,3541.2,7.8]
[1641429859103,0.333,3543.3,3541.9,0.2038009]
[1641429859303,0.333,3543.3,3542.9,0.01288758]
[1641429859502,0.333,3543.3,3543.1,0.2038009]
[1641429859702,0.333,3543.3,3543.2,0.5488009]
[1641429860103,0.34834743,3543.3,3543.2,0.5488009]
[1641429860649,0.34834743,3543.3,3543.2,2.0488009]
[1641429860852,0.68134743,3543.3,3543.2,2.0488009]
[1641429862956,1.01434743,3543.3,3543.2,2.0488009]
[1641429865002,1.34734743,3543.3,3543.2,2.0488009]
[1641429865402,2.4415398,3543.3,3543.2,2.0488009]
[1641429865803,2.4415398,3543.3,3543.2,1.7038009]
[1641429866004,1.34734743,3543.3,3542.6,2.0]
[1641429866205,1.34734743,3543.3,3542.7,0.345]
[1641429866403,0.01477901,3543.2,3542.7,0.345]
[1641429866804,0.01421059,3543.1,3542.7,0.345]
[1641429867004,2.61689876,3543.0,3542.7,0.345]
[1641429867205,2.63054092,3543.0,3542.7,0.62723]
[1641429867408,0.01307374,3542.9,3542.7,0.345]
[1641429867806,0.01250532,3542.8,3542.7,0.345]
[1641429868251,4.21250532,3542.8,3542.7,0.345]
[1641429868447,0.01250532,3542.8,3542.7,0.345]
[1641429869052,0.34550532,3542.8,3542.7,0.345]
[1641429871052,0.67850532,3542.8,3542.7,0.345]
[1641429871903,0.67850532,3542.8,3542.4,1.5]
[1641429872302,0.01193689,3542.7,3542.4,1.5]
[1641429872604,0.01136847,3542.6,3542.4,1.5]
[1641429873005,4.51080005,3542.5,3542.4,1.5]
[1641429873206,0.01080005,3542.5,3542.4,1.5]
[1641429873904,5.06080005,3542.5,3542.4,1.5]
[1641429874104,0.01080005,3542.5,3542.4,1.5]
[1641429874906,0.01080005,3542.5,3541.6,0.13819997]
[1641429874907,5.41080005,3542.5,3541.6,0.13819997]
[1641429875107,1.20439113,3542.4,3541.6,0.13819997]
[1641429875306,1.2162611,3542.4,3541.5,0.345]
[1641429875507,0.0096632,3542.3,3541.5,0.345]
[1641429875753,1.32764602,3541.8,3541.5,0.345]
[1641429876156,0.00625266,3541.7,3541.5,0.345]
[1641429876559,1.1662462,3541.6,3541.5,0.345]
[1641429877166,1.1662462,3541.6,3541.1,0.3]
[1641429877361,1.4992462,3541.6,3541.1,0.3]
[1641429877561,0.00511581,3541.5,3541.0,0.345]
[1641429877862,1.48774487,3541.2,3541.0,0.345]
[1641429878066,1.48774487,3541.2,3541.1,2.80227369]
[1641429878261,1.42187074,3541.3,3541.1,2.80227369]
[1641429878461,1.42187074,3541.3,3541.1,3.10227369]
[1641429878760,1.42187074,3541.3,3541.2,0.00170527]
[1641429879400,2.90499565,3541.3,3541.2,0.00170527]
[1641429879703,3.23799565,3541.3,3541.2,0.00170527]
[1641429879902,3.18799565,3541.3,3541.2,0.00170527]
[1641429880800,0.333,3541.3,3541.2,0.00170527]
[1641429881706,0.666,3541.3,3541.2,0.00170527]
[1641429881904,1.82047165,3541.3,3541.2,0.00170527]
[1641429882705,0.666,3541.3,3541.2,0.00170527]
[1641429883171,0.666,3541.3,3541.2,3.3465565]
[1641429883566,5.666,3541.3,3541.2,1.34670527]
[1641429883768,5.999,3541.3,3541.2,1.34670527]
[1641429884668,0.89140552,3541.3,3541.2,1.34670527]
[1641429885669,0.89140552,3541.3,3541.2,1.35520281]
[1641429885869,1.22440552,3541.3,3541.2,1.35520281]
[1641429888113,1.55740552,3541.3,3541.2,1.35520281]
[1641429889113,0.08367326,3541.6,3541.3,4.73229]
[1641429889412,0.08367326,3541.6,3541.4,1.0507016]
[1641429889613,0.08367326,3541.6,3541.5,1.89596541]
[1641429889814,0.08367326,3541.6,3541.5,2.24096541]